bitfinex/quotes_SOLUSD_20251116
["timestamp","ask_amount","ask_price","bid_price","bid_amount"]
[1763261143981,3.71897609,140.65,140.57,1.75265694]
[1763261144161,10.44882769,140.64,140.61,1.75265694]
[1763261144372,32.44002769,140.62,140.61,1.75265694]
[1763261144561,32.44002769,140.62,140.6,1.75265694]
[1763261144876,0.66,140.61,140.6,1.75265694]
[1763261145078,0.66,140.61,140.55,22.6512]
[1763261145282,0.66,140.61,140.58,1.75265694]
[1763261146882,0.66,140.61,140.59,1.75265694]
[1763261147580,9.78882769,140.6,140.57,1.75265694]
[1763261147976,0.66,140.59,140.57,1.75265694]
[1763261148881,0.66,140.59,140.56,1.75265694]
[1763261152580,0.66,140.59,140.14,50.49337717]
[1763261152581,9.78882769,140.56,140.47,7.11895778]
[1763261152782,22.6512,140.55,140.54,1.75265694]
[1763261153082,23.3112,140.55,140.54,1.75265694]
[1763261156985,23.3112,140.55,140.54,2.73993097]
[1763261158574,0.66,140.55,140.54,2.73993097]
[1763261160401,0.66,140.55,140.47,68.9185883]
[1763261160604,0.66,140.55,140.54,2.73993097]
[1763261161002,23.3112,140.55,140.53,2.73993097]
[1763261161207,0.66,140.55,140.52,2.73993097]
[1763261161406,0.66,140.54,140.52,2.73993097]
[1763261161713,0.66,140.54,140.53,2.73993097]
[1763261165407,0.66,140.54,140.46,32.61035636]
[1763261165713,0.66,140.54,140.53,2.73993097]
[1763261166009,0.66,140.54,140.46,50.4090179]
[1763261166208,0.66,140.54,140.53,2.73993097]
[1763261166711,0.66,140.54,140.52,2.73993097]
[1763261169108,22.6512,140.53,140.46,25.49113097]
[1763261169316,32.44002769,140.53,140.49,2.73993097]
[1763261169497,23.3112,140.53,140.52,2.73993097]
[1763261170293,0.66,140.53,140.52,2.73993097]
[1763261171720,0.66,140.53,140.51,2.73993097]
[1763261172215,9.78882769,140.52,140.49,2.73993097]
[1763261172597,0.66,140.51,140.49,2.73993097]
[1763261172800,0.66,140.51,140.46,2.83993097]
[1763261173111,0.66,140.51,140.48,2.73993097]
[1763261175204,0.66,140.51,140.49,2.73993097]
[1763261176315,0.66,140.51,140.46,2.83993097]
[1763261176633,0.66,140.51,140.48,2.73993097]
[1763261176846,0.66,140.51,140.49,2.73993097]
[1763261181537,0.66,140.51,140.47,2.73993097]
[1763261181831,3.39993097,140.51,140.47,2.73993097]
[1763261182212,0.67,140.5,140.47,2.73993097]
[1763261183132,0.67,140.5,140.48,2.73993097]
[1763261183712,0.67,140.5,140.46,0.1]
[1763261183912,0.67,140.5,140.47,2.73993097]
[1763261184114,32.44002769,140.49,140.46,0.1]
[1763261184540,0.67,140.48,140.46,0.1]
[1763261187045,9.78882769,140.47,140.46,0.1]
[1763261187422,10.45882769,140.47,140.46,0.1]
[1763261187828,17.57778547,140.47,140.46,0.1]
[1763261188028,20.31771644,140.47,140.46,0.1]
[1763261188933,13.19875866,140.47,140.46,0.1]
[1763261189138,13.19875866,140.47,140.46,0.02743291]
[1763261189523,20.31771644,140.47,140.46,0.02743291]
[1763261191523,23.17271804,140.47,140.46,0.02743291]
[1763261193228,73.17271804,140.47,140.46,0.02743291]
[1763261193745,75.91264901,140.47,140.45,0.1]
[1763261193916,32.44002769,140.43,140.42,0.1]
[1763261194121,35.17995866,140.43,140.42,0.1]
[1763261194335,42.9709442,140.43,140.42,0.1]
[1763261194955,33.11002769,140.43,140.42,0.1]
[1763261195250,35.96523308,140.43,140.42,0.1]
[1763261198530,38.70516405,140.43,140.42,0.1]
[1763261199247,45.82614959,140.43,140.42,0.1]
[1763261199755,38.70516405,140.43,140.42,0.1]
[1763261201838,35.96523308,140.43,140.42,0.1]
[1763261202042,25.50640539,140.43,140.42,0.1]
[1763261202347,0.67,140.48,140.42,2.96993097]
[1763261202548,2.85398309,140.48,140.45,2.73993097]
[1763261202735,22.6512,140.47,140.45,2.73993097]
[1763261203072,0.67,140.49,140.46,2.73993097]
[1763261203249,10.45882769,140.49,140.46,2.73993097]
[1763261203430,22.6512,140.47,140.46,2.73993097]
[1763261203758,22.5212,140.47,140.46,2.73993097]
[1763261204064,0.66,140.53,140.46,5.47986194]
[1763261204258,0.66,140.53,140.5,2.73993097]
[1763261204572,12.52875866,140.51,140.41,29.11595824]
[1763261204728,0.66,140.5,140.47,2.73993097]
[1763261204938,6.25289627,140.52,140.48,2.73993097]
[1763261205142,6.25289627,140.52,140.49,2.73993097]
[1763261205443,0.66,140.52,140.46,2.73993097]
[1763261205647,0.66,140.52,140.49,2.73993097]
[1763261205975,22.6512,140.51,140.49,2.73993097]
[1763261206273,0.66,140.53,140.5,2.73993097]
[1763261206575,9.78882769,140.54,140.5,2.73993097]
[1763261206576,0.66,140.52,140.5,2.73993097]
[1763261206945,0.66,140.52,140.49,2.73993097]
[1763261207146,0.66,140.52,140.45,22.6512]
[1763261207465,0.66,140.52,140.49,2.73993097]
[1763261207665,0.66,140.52,140.48,2.73993097]
[1763261207968,9.78882769,140.51,140.48,2.73993097]
[1763261208469,0.66,140.5,140.48,2.73993097]
[1763261209066,0.66,140.5,140.47,2.73993097]
[1763261209243,0.66,140.5,140.46,2.73993097]
[1763261210040,9.78882769,140.51,140.49,2.73993097]
[1763261210236,22.6512,140.52,140.49,2.73993097]
[1763261210468,23.3112,140.52,140.49,2.73993097]
[1763261211042,0.66,140.51,140.49,2.73993097]
[1763261215883,9.78882769,140.5,140.48,2.73993097]
[1763261216087,9.78882769,140.5,140.47,2.73993097]
[1763261216374,0.66,140.49,140.47,2.73993097]
[1763261216967,0.66,140.51,140.48,2.73993097]
[1763261217149,10.44882769,140.5,140.48,2.73993097]
[1763261217575,32.50759892,140.52,140.48,2.73993097]
[1763261217576,44.05301915,140.52,140.48,2.73993097]
[1763261217871,22.6512,140.5,140.49,2.73993097]
[1763261218057,22.6512,140.5,140.48,2.73993097]
[1763261218574,23.3112,140.5,140.48,2.73993097]
[1763261218963,23.3112,140.5,140.48,1.75490305]
[1763261219681,10.44882769,140.49,140.42,22.7512]
[1763261219873,10.44882769,140.49,140.46,1.75490305]
[1763261220177,0.66,140.48,140.45,1.75490305]
[1763261220382,9.78882769,140.47,140.45,1.75490305]
[1763261221060,22.6512,140.49,140.46,1.75490305]
[1763261221261,23.3112,140.49,140.42,0.1]
[1763261221566,22.6512,140.49,140.47,1.75490305]
[1763261221995,9.78882769,140.51,140.48,1.75490305]
[1763261222279,10.44882769,140.51,140.48,1.75490305]
[1763261222581,10.44882769,140.51,140.49,1.75490305]
[1763261222981,0.66,140.5,140.48,1.75490305]
[1763261224167,22.6512,140.52,140.49,1.75490305]
[1763261224379,23.3112,140.52,140.5,1.75490305]
[1763261225264,23.3112,140.52,140.46,14.13906515]
[1763261225468,9.78882769,140.54,140.51,1.75490305]
[1763261225662,10.44882769,140.53,140.52,1.75490305]
[1763261228593,10.44882769,140.53,140.51,1.75490305]
[1763261228884,0.66,140.53,140.51,1.75490305]
[1763261229298,0.66,140.53,140.46,7.0196122]
[1763261229594,0.66,140.53,140.51,1.75490305]
[1763261229968,0.66,140.53,140.45,9.78882769]
[1763261230168,0.66,140.54,140.51,1.75490305]
[1763261233688,22.6512,140.53,140.52,1.75490305]
[1763261234075,25.11558236,140.56,140.52,1.75490305]
[1763261234276,0.71,140.57,140.55,1.75490305]
[1763261234472,0.71,140.57,140.56,1.75490305]
[1763261234673,10.49882769,140.57,140.5,21.38961177]
[1763261234875,10.49882769,140.57,140.54,1.75490305]
[1763261235073,0.71,140.56,140.54,1.75490305]
[1763261235393,0.71,140.56,140.55,1.75490305]
[1763261238398,0.71,140.56,140.54,1.75490305]
[1763261238787,0.71,140.56,140.52,1.75490305]
[1763261238992,12.25373074,140.56,140.52,1.75490305]
[1763261239383,0.71,140.55,140.52,1.75490305]
[1763261239706,9.78882769,140.54,140.51,1.75490305]
[1763261239902,0.71,140.53,140.46,7.0196122]
[1763261240079,0.71,140.53,140.49,1.75490305]
[1763261241403,0.71,140.53,140.5,1.75490305]
[1763261243207,9.78882769,140.52,140.48,1.75490305]
[1763261243404,34.19493074,140.52,140.42,61.9]
[1763261243607,0.71,140.51,140.48,1.75490305]
[1763261243788,121.98923748,140.54,140.46,7.0196122]
[1763261243789,0.71,140.54,140.46,7.0196122]
[1763261244107,0.71,140.55,140.53,1.75490305]
[1763261244303,23.3612,140.55,140.54,1.75490305]
[1763261245108,22.6512,140.55,140.54,1.75490305]
[1763261248898,23.3612,140.55,140.53,1.75490305]
[1763261249406,23.3612,140.55,140.48,7.1183765]
[1763261249797,23.3612,140.55,140.53,1.75490305]
[1763261250442,23.3612,140.55,140.54,1.75490305]
[1763261251538,22.6512,140.55,140.54,1.75490305]
[1763261251748,0.71,140.57,140.54,1.75490305]
[1763261251922,0.71,140.57,140.56,1.75490305]
[1763261253240,10.49882769,140.59,140.56,1.75490305]
[1763261253410,10.49882769,140.59,140.57,1.75490305]
[1763261253411,0.71,140.58,140.57,1.75490305]
[1763261254027,0.71,140.58,140.56,1.75490305]
[1763261254820,0.71,140.58,140.55,1.75490305]
[1763261255009,0.71,140.58,140.56,1.75490305]
[1763261255445,29.76859123,140.6,140.57,1.75490305]
[1763261255740,4.43192124,140.64,140.59,1.75490305]
[1763261255741,10.49882769,140.63,140.59,1.75490305]
[1763261256061,23.3612,140.63,140.59,1.75490305]
[1763261256348,10.49882769,140.62,140.59,1.75490305]
[1763261256717,0.71,140.61,140.59,1.75490305]
[1763261257626,22.6512,140.59,140.52,29.6708122]
[1763261257831,22.6512,140.59,140.56,1.75490305]
[1763261258036,0.71,140.62,140.58,1.75490305]
[1763261258357,23.3612,140.62,140.6,1.75490305]
[1763261258519,22.6512,140.61,140.6,1.75490305]
[1763261258721,0.71,140.62,140.6,1.75490305]
[1763261258722,9.78882769,140.65,140.6,1.75490305]
[1763261258939,0.71,140.63,140.61,1.75490305]
[1763261259143,0.71,140.64,140.62,1.75490305]
[1763261259343,9.78882769,140.65,140.62,1.75490305]
[1763261259648,0.2,140.66,140.64,8.77451525]
[1763261259944,0.2,140.66,140.65,1.75490305]
[1763261260944,0.2,140.66,140.65,4.25327444]
[1763261264024,0.2,140.72,140.65,38.26759601]
[1763261264342,0.2,140.72,140.65,47.53566497]
[1763261264542,0.2,140.72,140.65,29.76104713]
[1763261264735,0.2,140.72,140.71,4.25327444]
[1763261266067,0.91,140.72,140.62,61.8]
[1763261266246,0.71,140.71,140.65,22.6512]
[1763261266440,0.2,140.72,140.69,22.6512]
[1763261267138,0.91,140.72,140.66,9.78882769]
[1763261267338,0.2,140.72,140.71,4.25327444]
[1763261268967,0.2,140.72,140.71,11.36008987]
[1763261269372,0.2,140.75,140.71,21.14891756]
[1763261269583,0.2,140.8,140.75,9.78882769]
[1763261269744,0.2,140.8,140.79,4.25327444]
[1763261272544,0.91,140.8,140.79,4.25327444]
[1763261272964,0.91,140.8,140.74,22.6512]
[1763261273160,0.91,140.8,140.79,4.25327444]
[1763261273366,0.2,140.8,140.79,4.25327444]
[1763261273562,0.2,140.8,140.77,4.25327444]
[1763261273878,0.91,140.8,140.79,4.25327444]
[1763261274941,0.91,140.8,140.74,22.6512]
[1763261275164,0.91,140.8,140.79,4.25327444]
[1763261275551,0.2,140.8,140.79,4.25327444]
[1763261280457,0.2,140.8,140.79,36.69330213]
[1763261280663,0.2,140.81,140.8,4.25327444]
[1763261280851,0.2,140.81,140.8,13.50890572]
[1763261281579,0.2,140.81,140.8,6.75445286]
[1763261281782,0.91,140.81,140.75,22.6512]
[1763261282077,0.91,140.81,140.8,6.75445286]
[1763261282277,0.2,140.81,140.8,6.75445286]
[1763261282583,0.91,140.81,140.8,6.75445286]
[1763261282963,0.2,140.81,140.8,2.72922509]
[1763261283661,0.2,140.81,140.8,5.45845018]
[1763261283860,0.2,140.81,140.8,2.72922509]
[1763261284167,0.2,140.81,140.8,5.45845018]
[1763261284476,0.2,140.81,140.8,2.72922509]
[1763261284866,0.2,140.81,140.8,13.51214746]
[1763261285256,0.2,140.81,140.8,6.75607373]
[1763261285469,0.2,140.81,140.8,13.51214746]
[1763261285985,3.71248085,140.89,140.8,20.61442018]
[1763261286154,2.27542461,140.94,140.88,13.51214746]
[1763261286355,2.27542461,140.94,140.93,6.75607373]
[1763261287690,2.98542461,140.94,140.93,6.75607373]
[1763261287890,2.98542461,140.94,140.89,22.6512]
[1763261288190,0.71,140.93,140.89,22.6512]
[1763261288375,2.98542461,140.94,140.89,22.6512]
[1763261288576,2.27542461,140.94,140.93,6.75607373]
[1763261289182,2.98542461,140.94,140.93,6.75607373]
[1763261290878,2.98542461,140.94,140.89,22.6512]
[1763261291092,2.98542461,140.94,140.84,9.78882769]
[1763261291093,2.27542461,140.94,140.84,9.78882769]
[1763261291389,2.27542461,140.94,140.93,6.75607373]
[1763261291811,2.98542461,140.94,140.83,16.88908902]
[1763261291984,0.71,140.93,140.9,6.75607373]
[1763261292179,23.3612,140.93,140.86,22.6512]
[1763261292371,23.3612,140.93,140.91,6.75607373]
[1763261292702,0.71,140.92,140.91,6.75607373]
[1763261293077,23.3612,140.92,140.89,6.75607373]
[1763261293413,9.78882769,140.9,140.76,1.99999999]
[1763261293571,30.07727373,140.91,140.86,6.75607373]
[1763261293787,0.67,140.9,140.87,6.75607373]
[1763261293996,17.21490142,140.9,140.8,39.19610142]
[1763261294204,0.67,140.89,140.86,6.75607373]
[1763261294410,23.3212,140.89,140.8,22.6512]
[1763261294699,23.3212,140.89,140.86,6.75607373]
[1763261294868,0.67,140.88,140.8,29.40727373]
[1763261295064,2.27542461,140.94,140.87,6.75607373]
[1763261295294,2.27542461,140.94,140.91,6.75607373]
[1763261295295,10.45882769,140.93,140.91,6.75607373]
[1763261295597,23.3212,140.93,140.84,7.10014546]
[1763261295794,0.67,140.92,140.91,6.75607373]
[1763261296393,9.78882769,140.91,140.88,6.75607373]
[1763261296592,9.78882769,140.91,140.82,22.6512]
[1763261296788,0.67,140.9,140.87,6.75607373]
[1763261296970,0.67,140.9,140.88,6.75607373]
[1763261299094,0.67,140.9,140.87,6.75607373]
[1763261300283,0.67,140.9,140.88,6.75607373]
[1763261300687,0.67,140.9,140.87,6.75607373]
[1763261300882,0.67,140.9,140.85,6.75607373]
[1763261300883,7.42607373,140.9,140.85,6.75607373]
[1763261301083,22.6512,140.86,140.8,6.75607373]
[1763261301285,22.6512,140.86,140.83,6.75607373]
[1763261301498,0.67,140.85,140.8,6.75607373]
[1763261301679,29.40727373,140.84,140.79,6.75607373]
[1763261302071,0.67,140.83,140.79,6.75607373]
[1763261302266,6.75607373,140.82,140.72,29.40727373]
[1763261302491,6.75607373,140.81,140.76,6.75607373]
[1763261302867,10.45882769,140.8,140.76,6.75607373]
[1763261303306,10.45882769,140.8,140.7,29.75841092]
[1763261303307,0.67,140.79,140.75,6.75607373]
[1763261303500,0.67,140.79,140.76,6.75607373]
[1763261303875,0.67,140.79,140.77,6.75607373]
[1763261304688,0.67,140.84,140.78,6.75607373]
[1763261304888,0.67,140.84,140.82,6.75607373]
[1763261304889,23.3212,140.84,140.82,6.75607373]
[1763261305083,23.3212,140.84,140.77,7.10377143]
[1763261305280,0.67,140.83,140.82,6.75607373]
[1763261306109,0.67,140.85,140.82,6.75607373]
[1763261306328,23.3212,140.85,140.84,6.75607373]
[1763261306812,0.67,140.85,140.84,6.75607373]
[1763261306976,23.3212,140.85,140.84,6.75607373]
[1763261307810,23.3212,140.85,140.83,6.75607373]
[1763261308017,0.67,140.84,140.83,6.75607373]
[1763261309199,0.67,140.84,140.82,6.75607373]
[1763261309791,0.67,140.84,140.83,6.75607373]
[1763261310610,0.67,140.84,140.82,6.75607373]
[1763261310810,0.67,140.84,140.75,39.54471865]
[1763261310987,0.67,140.84,140.82,6.75607373]
[1763261312717,0.67,140.84,140.83,6.75607373]
[1763261312879,23.3212,140.87,140.83,6.75607373]
[1763261313195,33.11002769,140.87,140.86,6.75607373]
[1763261313395,32.44002769,140.87,140.86,6.75607373]
[1763261313828,33.11002769,140.87,140.86,6.75607373]
[1763261314513,33.11002769,140.87,140.84,6.75607373]
[1763261314726,0.67,140.86,140.84,6.75607373]
[1763261315312,0.67,140.88,140.85,6.75607373]
[1763261315489,0.67,140.88,140.86,6.75607373]
[1763261315887,22.6512,140.86,140.83,6.75607373]
[1763261316090,0.67,140.85,140.73,9.78882769]
[1763261316298,0.67,140.85,140.81,6.75607373]
[1763261316593,22.6512,140.83,140.74,7.10528238]
[1763261316914,22.6512,140.83,140.8,6.75607373]
[1763261317098,4.38337501,140.82,140.8,6.75607373]
[1763261317298,4.38337501,140.82,140.81,6.75607373]
[1763261317700,3.71337501,140.82,140.81,6.75607373]
[1763261317913,0.67,140.84,140.81,6.75607373]
[1763261318108,0.67,140.84,140.83,6.75607373]
[1763261318589,4.38285431,140.84,140.82,6.75607373]
[1763261319012,0.67,140.83,140.82,6.75607373]
[1763261319935,0.67,140.83,140.65,35.54871232]
[1763261320225,9.78882769,140.82,140.76,6.75607373]
[1763261320427,16.54490142,140.82,140.77,6.75607373]
[1763261320725,7.42607373,140.81,140.76,6.75607373]
[1763261321229,0.67,140.8,140.76,6.75607373]
[1763261321514,0.67,140.8,140.76,6.25607373]
[1763261322990,0.67,140.8,140.72,6.75607373]
[1763261322991,0.67,140.8,140.72,13.86234415]
[1763261323191,0.67,140.8,140.79,6.75607373]
[1763261323391,0.68,140.82,140.79,6.75607373]
[1763261323616,0.68,140.81,140.8,6.75607373]
[1763261324013,0.68,140.83,140.8,6.75607373]
[1763261324219,22.6512,140.83,140.75,22.6512]
[1763261324403,22.6512,140.83,140.81,6.75607373]
[1763261324809,0.68,140.82,140.81,6.75607373]
[1763261325170,0.68,140.82,140.76,9.78882769]
[1763261325325,0.68,140.82,140.81,6.75607373]
[1763261325941,22.6512,140.81,140.79,6.75607373]
[1763261326143,22.6512,140.8,140.77,6.75607373]
[1763261326349,22.6512,140.8,140.78,6.75607373]
[1763261326520,0.68,140.79,140.72,6.75607373]
[1763261326926,0.68,140.79,140.78,6.75607373]
[1763261327224,0.68,140.79,140.72,6.75607373]
[1763261327453,0.68,140.79,140.75,6.75607373]
[1763261329462,16.54490142,140.78,140.63,1.99999999]
[1763261329624,16.54490142,140.78,140.73,6.75607373]
[1763261329826,0.68,140.77,140.74,6.75607373]
[1763261330564,22.6512,140.81,140.76,6.75607373]
[1763261330768,0.68,140.79,140.78,6.75607373]
[1763261331070,0.68,140.79,140.77,6.75607373]
[1763261332571,23.3312,140.79,140.77,6.75607373]
[1763261332861,23.3312,140.79,140.72,6.75607373]
[1763261333031,23.3312,140.79,140.77,6.75607373]
[1763261333235,3.71285431,140.84,140.78,6.75607373]
[1763261333236,4.39285431,140.84,140.78,6.75607373]
[1763261333435,0.68,140.83,140.75,22.6512]
[1763261333935,3.71285431,140.84,140.77,22.6512]
[1763261334546,3.71285431,140.84,140.83,6.75607373]
[1763261334761,4.39285431,140.84,140.83,6.75607373]
[1763261335084,9.78882769,140.83,140.79,6.75607373]
[1763261335232,0.68,140.82,140.73,29.75700544]
[1763261335441,22.6512,140.8,140.72,6.75607373]
[1763261335745,0.68,140.79,140.76,6.75607373]
[1763261336373,23.3312,140.8,140.78,6.75607373]
[1763261336559,0.68,140.79,140.72,16.54490142]
[1763261336741,0.68,140.79,140.78,6.75607373]
[1763261337762,22.6512,140.8,140.78,6.75607373]
[1763261337978,0.68,140.79,140.71,22.6512]
[1763261338178,0.68,140.79,140.76,6.75607373]
[1763261338477,0.68,140.79,140.77,6.75607373]
[1763261339342,0.68,140.79,140.72,6.75607373]
[1763261339343,0.68,140.79,140.76,6.75607373]
[1763261339674,9.78882769,140.78,140.74,6.75607373]
[1763261339963,0.68,140.77,140.74,6.75607373]
[1763261341067,0.68,140.77,140.75,4.25007757]
[1763261341443,0.68,140.77,140.76,4.25007757]
[1763261341643,22.6512,140.78,140.76,4.25007757]
[1763261341852,0.68,140.79,140.77,4.25007757]
[1763261342055,23.3312,140.79,140.78,4.25007757]
[1763261342258,23.3312,140.79,140.72,22.6512]
[1763261342454,9.78882769,140.81,140.78,4.25007757]
[1763261342655,0.68,140.8,140.79,4.25007757]
[1763261343259,0.68,140.8,140.74,22.6512]
[1763261343958,0.68,140.8,140.79,4.25007757]
[1763261344164,0.68,140.8,140.73,22.6512]
[1763261344371,0.68,140.8,140.7,4.25007757]
[1763261344372,9.78882769,140.79,140.75,4.25007757]
[1763261344779,0.68,140.78,140.75,4.25007757]
[1763261344971,7.78328483,140.78,140.7,4.25007757]
[1763261345377,0.68,140.77,140.74,4.25007757]
[1763261345768,32.44002769,140.76,140.66,9.78882769]
[1763261345965,36.69010526,140.76,140.72,4.25007757]
[1763261346167,36.69010526,140.76,140.63,4.25007757]
[1763261346168,14.03890526,140.74,140.63,4.25007757]
[1763261346360,4.25007757,140.73,140.63,4.25007757]
[1763261346557,0.68,140.72,140.69,4.25007757]
[1763261347598,7.78637523,140.72,140.69,4.25007757]
[1763261347976,0.68,140.71,140.68,4.25007757]
[1763261348668,0.68,140.71,140.69,4.25007757]
[1763261348862,26.36766448,140.7,140.69,4.25007757]
[1763261349259,27.04766448,140.7,140.69,4.25007757]
[1763261349474,27.04766448,140.7,140.68,4.25007757]
[1763261350675,0.68,140.69,140.68,4.25007757]
[1763261350971,0.68,140.69,140.67,4.25007757]
[1763261351283,0.68,140.69,140.66,4.25007757]
[1763261351988,23.3312,140.69,140.68,4.25007757]
[1763261352188,0.68,140.69,140.68,4.25007757]
[1763261354197,0.68,140.69,140.67,4.25007757]
[1763261354568,0.68,140.69,140.66,4.25007757]
[1763261355125,0.68,140.69,140.63,4.25007757]
[1763261355126,0.68,140.69,140.67,4.25007757]
[1763261355700,0.68,140.69,140.68,4.25007757]
[1763261355871,3.71646448,140.7,140.68,4.25007757]
[1763261356084,0.72,140.69,140.67,4.25007757]
[1763261358301,0.72,140.69,140.68,4.25007757]
[1763261358900,3.71646448,140.7,140.68,4.25007757]
[1763261359099,3.71646448,140.7,140.69,4.25007757]
[1763261359299,4.43646448,140.7,140.69,4.25007757]
[1763261363200,27.08766448,140.7,140.63,4.25007757]
[1763261363390,27.08766448,140.7,140.68,4.25007757]
[1763261363796,27.08766448,140.7,140.69,4.25007757]
[1763261363797,26.36766448,140.7,140.69,4.25007757]
[1763261363993,26.36766448,140.7,140.63,11.36086539]
[1763261364202,27.08766448,140.7,140.63,4.25007757]
[1763261364403,0.72,140.69,140.68,4.25007757]
[1763261364586,0.72,140.69,140.63,4.25007757]
[1763261364789,0.72,140.69,140.68,4.25007757]
[1763261365002,0.72,140.69,140.63,4.25007757]
[1763261365003,0.72,140.69,140.67,4.25007757]
[1763261365302,0.72,140.69,140.68,4.25007757]
[1763261366513,0.72,140.69,140.67,4.25007757]
[1763261366814,0.72,140.69,140.66,4.25007757]
[1763261368791,22.6512,140.68,140.67,4.25007757]
[1763261368999,0.72,140.69,140.67,4.25007757]
[1763261369201,0.72,140.69,140.68,4.25007757]
[1763261369808,0.72,140.69,140.63,22.6512]
[1763261369999,0.72,140.69,140.67,4.25007757]
[1763261371487,0.72,140.69,140.63,4.25007757]
[1763261371694,0.72,140.69,140.67,4.25007757]
[1763261373088,0.72,140.69,140.63,4.25007757]
[1763261373415,0.72,140.69,140.67,4.25007757]
[1763261373788,0.72,140.69,140.63,4.25007757]
[1763261373985,0.72,140.69,140.67,4.25007757]
[1763261374188,0.72,140.69,140.66,4.25007757]
[1763261374416,0.72,140.69,140.67,4.25007757]
[1763261375100,0.72,140.69,140.68,4.25007757]
[1763261376118,0.72,140.69,140.67,4.25007757]
[1763261376896,3.71646448,140.7,140.68,4.25007757]
[1763261377090,0.72,140.69,140.62,22.7512]
[1763261377413,4.43646448,140.7,140.68,4.25007757]
[1763261377598,4.43646448,140.7,140.69,4.25007757]
[1763261380321,3.71646448,140.7,140.69,4.25007757]
[1763261380528,0.72,140.74,140.69,8.50015514]
[1763261380703,0.72,140.74,140.73,4.25007757]
[1763261381114,4.43547438,140.74,140.73,4.25007757]
[1763261381432,4.43547438,140.74,140.66,29.76038447]
[1763261381611,0.72,140.73,140.72,4.25007757]
[1763261382625,4.43547438,140.74,140.72,4.25007757]
[1763261382823,4.43547438,140.74,140.73,4.25007757]
[1763261383524,4.43547438,140.74,140.72,4.25007757]
[1763261383824,3.71547438,140.74,140.73,4.25007757]
[1763261384030,14.03890526,140.8,140.73,4.25007757]
[1763261384213,36.69010526,140.8,140.75,4.25007757]
[1763261384415,9.78882769,140.78,140.75,4.25007757]
[1763261385026,0.68,140.77,140.75,4.25007757]
[1763261385605,0.68,140.77,140.7,4.25007757]
[1763261385930,0.68,140.77,140.75,4.25007757]
[1763261386728,0.68,140.77,140.63,61.8]
[1763261386729,14.03890526,140.76,140.63,61.8]
[1763261386946,30.435026,140.77,140.72,4.25007757]
[1763261386947,23.3312,140.77,140.72,4.25007757]
[1763261387106,10.46882769,140.76,140.72,4.25007757]
[1763261387421,10.46882769,140.76,140.73,4.25007757]
[1763261387731,0.68,140.75,140.67,22.6512]
[1763261388038,0.68,140.75,140.73,4.25007757]
[1763261388434,22.6512,140.77,140.74,4.25007757]
[1763261388601,0.68,140.78,140.76,4.25007757]
[1763261390435,0.68,140.78,140.77,4.25007757]
[1763261390730,0.68,140.78,140.7,22.6512]
[1763261390924,0.68,140.78,140.77,4.25007757]
[1763261391629,0.68,140.78,140.7,34.00854792]
[1763261391838,0.68,140.78,140.7,26.90127757]
[1763261392136,9.78882769,140.75,140.72,4.25007757]
[1763261392317,0.68,140.74,140.72,4.25007757]
[1763261393712,0.68,140.77,140.73,4.25007757]
[1763261393941,0.68,140.77,140.75,4.25007757]
[1763261394245,0.68,140.77,140.74,4.25007757]
[1763261394413,9.78882769,140.76,140.64,61.8]
[1763261394743,9.78882769,140.76,140.73,4.25007757]
[1763261394941,0.68,140.75,140.73,4.25007757]
[1763261395309,0.68,140.75,140.72,4.25007757]
[1763261395646,9.78882769,140.74,140.71,4.25007757]
[1763261395820,9.78882769,140.74,140.72,4.25007757]
[1763261396013,0.68,140.73,140.71,4.25007757]
[1763261396436,0.68,140.73,140.67,22.6512]
[1763261396648,0.68,140.73,140.72,4.25007757]
[1763261400235,0.68,140.73,140.71,4.25007757]
[1763261400544,0.68,140.73,140.7,4.25007757]
[1763261401044,1.7497498,140.71,140.67,1.7497498]
[1763261401251,9.78882769,140.68,140.62,0.1]
[1763261401542,0.68,140.67,140.66,1.7497498]
[1763261402244,0.68,140.68,140.64,6.9989992]
[1763261402647,0.68,140.68,140.67,1.7497498]